[Event "Titled Tuesday Blitz June 27 Late 2023"]
[White "Daggupati, Balaji"]
[Black "Koc, Przemyslaw"]
[WhiteFideId "2090759"]
[BlackFideId "1109081"]
[WhiteElo "2734"]
[BlackElo "2506"]
[Result "1-0"]
[Round "2"]
[TimeControl "180+2"]
[Date "2023.06.27"]
[WhiteClock "0:00:19"]
[BlackClock "0:00:00"]
[Board "69"]

1. e4 {[%clk 0:03:00]}  e5 {[%clk 0:02:58]} 2. Nf3 {[%clk 0:03:00]}  Nf6 {[%clk 0:02:59]} 3. Nc3 {[%clk 0:02:58]}  d6 {[%clk 0:02:58]} 4. d4 {[%clk 0:02:56]}  Nbd7 {[%clk 0:02:59]} 5. Bc4 {[%clk 0:02:55]}  Be7 {[%clk 0:02:59]} 6. O-O {[%clk 0:02:55]}  c6 {[%clk 0:02:59]} 7. a4 {[%clk 0:02:55]}  b6 {[%clk 0:02:52]} 8. Bxf7+ {[%clk 0:02:26]}  Kxf7 {[%clk 0:02:52]} 9. Ng5+ {[%clk 0:02:27]}  Kg8 {[%clk 0:02:52]} 10. Ne6 {[%clk 0:02:28]}  Qe8 {[%clk 0:02:51]} 11. Nc7 {[%clk 0:02:28]}  Qd8 {[%clk 0:02:43]} 12. Ne6 {[%clk 0:02:27]}  Qe8 {[%clk 0:02:43]} 13. Nc7 {[%clk 0:02:28]}  Qd8 {[%clk 0:02:43]} 14. Nxa8 {[%clk 0:02:28]}  Ba6 {[%clk 0:02:41]} 15. dxe5 {[%clk 0:02:27]}  dxe5 {[%clk 0:02:40]} 16. Nxb6 {[%clk 0:02:24]}  axb6 {[%clk 0:02:25]} 17. Re1 {[%clk 0:02:23]}  h6 {[%clk 0:02:20]} 18. Qf3 {[%clk 0:02:16]}  Kh7 {[%clk 0:02:17]} 19. Qf5+ {[%clk 0:02:15]}  g6 {[%clk 0:02:17]} 20. Qe6 {[%clk 0:02:16]}  Rf8 {[%clk 0:02:14]} 21. Qxc6 {[%clk 0:02:15]}  Nc5 {[%clk 0:02:01]} 22. a5 {[%clk 0:01:56]}  bxa5 {[%clk 0:01:56]} 23. Be3 {[%clk 0:01:56]}  Bb7 {[%clk 0:01:53]} 24. Qb5 {[%clk 0:01:56]}  Qc7 {[%clk 0:01:41]} 25. Red1 {[%clk 0:01:44]}  Ncxe4 {[%clk 0:01:15]} 26. Bb6 {[%clk 0:01:35]}  Nxc3 {[%clk 0:01:07]} 27. bxc3 {[%clk 0:01:35]}  Qxc3 {[%clk 0:00:59]} 28. Bxa5 {[%clk 0:01:24]}  Qc6 {[%clk 0:00:58]} 29. Qxc6 {[%clk 0:01:24]}  Bxc6 {[%clk 0:00:59]} 30. Bb6 {[%clk 0:01:23]}  Nd5 {[%clk 0:00:53]} 31. Ra7 {[%clk 0:01:23]}  Rf7 {[%clk 0:00:50]} 32. Bc5 {[%clk 0:01:17]}  Kg7 {[%clk 0:00:37]} 33. Rxd5 {[%clk 0:01:13]}  Bxd5 {[%clk 0:00:37]} 34. Bxe7 {[%clk 0:01:13]}  e4 {[%clk 0:00:30]} 35. Rc7 {[%clk 0:01:02]}  g5 {[%clk 0:00:25]} 36. Kf1 {[%clk 0:01:01]}  Kg6 {[%clk 0:00:23]} 37. Ke2 {[%clk 0:01:01]}  Kf5 {[%clk 0:00:20]} 38. c4 {[%clk 0:01:01]}  Be6 {[%clk 0:00:18]} 39. c5 {[%clk 0:00:51]}  Ke5 {[%clk 0:00:16]} 40. Bd6+ {[%clk 0:00:26]}  Kd5 {[%clk 0:00:15]} 41. Rxf7 {[%clk 0:00:22]}  Bxf7 {[%clk 0:00:15]} 42. Be7 {[%clk 0:00:20]}  g4 {[%clk 0:00:15]} 43. Ke3 {[%clk 0:00:18]}  h5 {[%clk 0:00:13]} 44. Kf4 {[%clk 0:00:19]}  Be8 {[%clk 0:00:13]} 45. g3 {[%clk 0:00:19]}  Bf7 {[%clk 0:00:12]} 46. Kg5 {[%clk 0:00:18]}  Be8 {[%clk 0:00:12]} 47. Kf6 {[%clk 0:00:19]}  Bd7 {[%clk 0:00:11]} 48. Kg6 {[%clk 0:00:18]}  Be8+ {[%clk 0:00:12]} 49. Kg7 {[%clk 0:00:19]}  Ke6 {[%clk 0:00:11]} 50. Bd6 {[%clk 0:00:18]}  Kd5 {[%clk 0:00:10]} 51. Bf8 {[%clk 0:00:18]}  Bd7 {[%clk 0:00:09]} 52. Kf7 {[%clk 0:00:18]}  Bc6 {[%clk 0:00:09]} 53. Kf6 {[%clk 0:00:17]}  Be8 {[%clk 0:00:09]} 54. Kg5 {[%clk 0:00:17]}  Kc6 {[%clk 0:00:09]} 55. Kf5 {[%clk 0:00:16]}  Kd5 {[%clk 0:00:10]} 56. Kf4 {[%clk 0:00:16]}  Bd7 {[%clk 0:00:10]} 57. Kg5 {[%clk 0:00:16]}  Be8 {[%clk 0:00:11]} 58. Kh4 {[%clk 0:00:16]}  Kd4 {[%clk 0:00:11]} 59. h3 {[%clk 0:00:15]}  gxh3 {[%clk 0:00:10]} 60. Kxh3 {[%clk 0:00:16]}  Kd3 {[%clk 0:00:10]} 61. Bh6 {[%clk 0:00:15]}  Ke2 {[%clk 0:00:10]} 62. Be3 {[%clk 0:00:16]}  Kf3 {[%clk 0:00:11]} 63. Kh4 {[%clk 0:00:17]}  Ke2 {[%clk 0:00:09]} 64. Kg5 {[%clk 0:00:16]}  Kd3 {[%clk 0:00:08]} 65. Kf6 {[%clk 0:00:17]}  Kc4 {[%clk 0:00:08]} 66. Ke7 {[%clk 0:00:18]}  Bb5 {[%clk 0:00:08]} 67. Kd6 {[%clk 0:00:18]}  Ba4 {[%clk 0:00:01]} 68. c6 {[%clk 0:00:18]}  Kb5 {[%clk 0:00:00]} 69. c7 {[%clk 0:00:19]} 1-0


[Site "https://www.chess.com"]

[Event "Titled Tuesday Blitz June 27 Late 2023"]
[White "Czerw, Dawid"]
[Black "Wieczorek, Oskar"]
[WhiteFideId "1145746"]
[BlackFideId "1133950"]
[WhiteElo "2499"]
[BlackElo "2724"]
[Result "1/2-1/2"]
[Round "2"]
[TimeControl "180+2"]
[Date "2023.06.27"]
[WhiteClock "0:00:12"]
[BlackClock "0:00:02"]
[Board "71"]

1. e4 {[%clk 0:02:59]}  c5 {[%clk 0:02:56]} 2. Nf3 {[%clk 0:02:58]}  e6 {[%clk 0:02:57]} 3. d4 {[%clk 0:02:59]}  cxd4 {[%clk 0:02:58]} 4. Nxd4 {[%clk 0:02:59]}  Nf6 {[%clk 0:02:58]} 5. Nc3 {[%clk 0:03:00]}  d6 {[%clk 0:02:59]} 6. Be3 {[%clk 0:02:52]}  a6 {[%clk 0:02:57]} 7. a4 {[%clk 0:02:41]}  Be7 {[%clk 0:02:52]} 8. h3 {[%clk 0:02:41]}  Nc6 {[%clk 0:02:45]} 9. g3 {[%clk 0:02:40]}  O-O {[%clk 0:02:42]} 10. Bg2 {[%clk 0:02:38]}  Bd7 {[%clk 0:02:43]} 11. O-O {[%clk 0:02:38]}  Ne5 {[%clk 0:02:41]} 12. b3 {[%clk 0:02:29]}  Rc8 {[%clk 0:02:40]} 13. Nce2 {[%clk 0:02:27]}  Qc7 {[%clk 0:02:22]} 14. f4 {[%clk 0:02:17]}  Nc6 {[%clk 0:02:21]} 15. c4 {[%clk 0:02:12]}  Rfe8 {[%clk 0:02:04]} 16. g4 {[%clk 0:02:05]}  Nxd4 {[%clk 0:02:04]} 17. Nxd4 {[%clk 0:02:02]}  e5 {[%clk 0:02:03]} 18. Ne2 {[%clk 0:01:54]}  Bc6 {[%clk 0:01:56]} 19. Nc3 {[%clk 0:01:39]}  exf4 {[%clk 0:01:51]} 20. Bxf4 {[%clk 0:01:39]}  Nd7 {[%clk 0:01:51]} 21. Kh1 {[%clk 0:01:25]}  Ne5 {[%clk 0:01:09]} 22. Ra2 {[%clk 0:01:19]}  Bf8 {[%clk 0:01:03]} 23. Raf2 {[%clk 0:01:16]}  Qa5 {[%clk 0:00:58]} 24. Ne2 {[%clk 0:00:50]}  Rc7 {[%clk 0:00:54]} 25. Nd4 {[%clk 0:00:45]}  g6 {[%clk 0:00:49]} 26. Bd2 {[%clk 0:00:34]}  Qc5 {[%clk 0:00:44]} 27. Bc3 {[%clk 0:00:31]}  Bg7 {[%clk 0:00:26]} 28. Bb2 {[%clk 0:00:19]}  b5 {[%clk 0:00:22]} 29. cxb5 {[%clk 0:00:17]}  axb5 {[%clk 0:00:23]} 30. Rc2 {[%clk 0:00:16]}  Qb6 {[%clk 0:00:21]} 31. axb5 {[%clk 0:00:07]}  Bxb5 {[%clk 0:00:13]} 32. Nxb5 {[%clk 0:00:08]}  Rxc2 {[%clk 0:00:13]} 33. Qxc2 {[%clk 0:00:09]}  Qxb5 {[%clk 0:00:13]} 34. Rd1 {[%clk 0:00:09]}  Qb6 {[%clk 0:00:10]} 35. Bd4 {[%clk 0:00:08]}  Qb7 {[%clk 0:00:08]} 36. Bg1 {[%clk 0:00:07]}  Bf8 {[%clk 0:00:07]} 37. Qc3 {[%clk 0:00:06]}  Rb8 {[%clk 0:00:07]} 38. Rb1 {[%clk 0:00:07]}  Qb4 {[%clk 0:00:06]} 39. Qxb4 {[%clk 0:00:07]}  Rxb4 {[%clk 0:00:06]} 40. Bf2 {[%clk 0:00:07]}  Be7 {[%clk 0:00:04]} 41. Be1 {[%clk 0:00:08]}  Rb8 {[%clk 0:00:04]} 42. b4 {[%clk 0:00:09]}  Nd7 {[%clk 0:00:03]} 43. Rc1 {[%clk 0:00:09]}  Bd8 {[%clk 0:00:03]} 44. Rc6 {[%clk 0:00:09]}  Rb6 {[%clk 0:00:02]} 45. Rc8 {[%clk 0:00:10]}  Rb8 {[%clk 0:00:02]} 46. Rxb8 {[%clk 0:00:10]}  Nxb8 {[%clk 0:00:03]} 47. Bf1 {[%clk 0:00:10]}  Bb6 {[%clk 0:00:03]} 48. Bb5 {[%clk 0:00:10]}  Kf8 {[%clk 0:00:02]} 49. Bg3 {[%clk 0:00:10]}  Ke7 {[%clk 0:00:03]} 50. e5 {[%clk 0:00:11]}  dxe5 {[%clk 0:00:03]} 51. Bxe5 {[%clk 0:00:12]}  Nd7 {[%clk 0:00:03]} 52. Bxd7 {[%clk 0:00:11]}  Kxd7 {[%clk 0:00:03]} 53. Bf4 {[%clk 0:00:11]}  Ke6 {[%clk 0:00:04]} 54. Kg2 {[%clk 0:00:11]}  Kd5 {[%clk 0:00:04]} 55. Kf3 {[%clk 0:00:11]}  Kc4 {[%clk 0:00:05]} 56. Bd6 {[%clk 0:00:12]}  Kd5 {[%clk 0:00:05]} 57. Bf8 {[%clk 0:00:12]}  Bc7 {[%clk 0:00:04]} 58. h4 {[%clk 0:00:12]}  Bb6 {[%clk 0:00:04]} 59. h5 {[%clk 0:00:12]}  Bc7 {[%clk 0:00:03]} 60. hxg6 {[%clk 0:00:12]}  hxg6 {[%clk 0:00:02]} 1/2-1/2


[Site "https://www.chess.com"]

[Event "Titled Tuesday Blitz June 27 Late 2023"]
[White "Laurent-Paoli, Pierre"]
[Black "Flynn, Jacob"]
[WhiteFideId "26017962"]
[BlackFideId "2509393"]
[WhiteElo "2720"]
[BlackElo "2485"]
[Result "1-0"]
[Round "2"]
[TimeControl "180+2"]
[Date "2023.06.27"]
[WhiteClock "0:01:25"]
[BlackClock "0:00:45"]
[Board "73"]

1. e4 {[%clk 0:03:00]}  e5 {[%clk 0:03:00]} 2. Nf3 {[%clk 0:03:01]}  Nc6 {[%clk 0:03:00]} 3. d4 {[%clk 0:03:01]}  exd4 {[%clk 0:03:00]} 4. Bc4 {[%clk 0:03:02]}  Nf6 {[%clk 0:03:01]} 5. e5 {[%clk 0:03:02]}  d5 {[%clk 0:03:01]} 6. Bb5 {[%clk 0:03:02]}  Ne4 {[%clk 0:03:01]} 7. Nxd4 {[%clk 0:03:03]}  Bd7 {[%clk 0:03:02]} 8. Bxc6 {[%clk 0:03:03]}  bxc6 {[%clk 0:03:03]} 9. O-O {[%clk 0:03:02]}  Bc5 {[%clk 0:03:03]} 10. f3 {[%clk 0:03:02]}  Ng5 {[%clk 0:03:04]} 11. f4 {[%clk 0:02:59]}  Ne4 {[%clk 0:03:04]} 12. Be3 {[%clk 0:03:00]}  Bb6 {[%clk 0:03:04]} 13. Nd2 {[%clk 0:02:58]}  Nxd2 {[%clk 0:03:05]} 14. Qxd2 {[%clk 0:02:59]}  c5 {[%clk 0:03:05]} 15. Nf3 {[%clk 0:02:59]}  d4 {[%clk 0:03:05]} 16. Bf2 {[%clk 0:03:00]}  Bc6 {[%clk 0:03:05]} 17. b3 {[%clk 0:02:56]}  Bxf3 {[%clk 0:02:46]} 18. gxf3 {[%clk 0:02:56]}  O-O {[%clk 0:02:37]} 19. Rae1 {[%clk 0:02:53]}  Qd7 {[%clk 0:02:35]} 20. Qd3 {[%clk 0:02:51]}  g6 {[%clk 0:02:34]} 21. Bh4 {[%clk 0:02:47]}  c6 {[%clk 0:02:24]} 22. f5 {[%clk 0:02:36]}  Qxf5 {[%clk 0:02:16]} 23. Qxf5 {[%clk 0:02:34]}  gxf5 {[%clk 0:02:17]} 24. Bf6 {[%clk 0:02:15]}  Bd8 {[%clk 0:02:14]} 25. Kf2 {[%clk 0:02:15]}  Bxf6 {[%clk 0:02:12]} 26. exf6 {[%clk 0:02:16]}  Rfe8 {[%clk 0:02:11]} 27. Rg1+ {[%clk 0:02:03]}  Kf8 {[%clk 0:02:11]} 28. Rxe8+ {[%clk 0:01:48]}  Rxe8 {[%clk 0:02:12]} 29. Rg7 {[%clk 0:01:49]}  Re6 {[%clk 0:02:13]} 30. Rxh7 {[%clk 0:01:49]}  Rxf6 {[%clk 0:02:13]} 31. Rh8+ {[%clk 0:01:50]}  Kg7 {[%clk 0:02:02]} 32. Rc8 {[%clk 0:01:45]}  Rh6 {[%clk 0:01:51]} 33. Kg3 {[%clk 0:01:44]}  Rd6 {[%clk 0:01:50]} 34. h4 {[%clk 0:01:34]}  Kf6 {[%clk 0:01:14]} 35. Kf4 {[%clk 0:01:30]}  d3 {[%clk 0:01:10]} 36. cxd3 {[%clk 0:01:30]}  Rd4+ {[%clk 0:01:11]} 37. Ke3 {[%clk 0:01:28]}  Rxh4 {[%clk 0:01:09]} 38. Rxc6+ {[%clk 0:01:27]}  Ke7 {[%clk 0:01:07]} 39. Rxc5 {[%clk 0:01:26]}  Rh2 {[%clk 0:00:45]} 40. Ra5 {[%clk 0:01:25]} 1-0


[Site "https://www.chess.com"]

[Event "Titled Tuesday Blitz June 27 Late 2023"]
[White "Luong Phuong Hanh"]
[Black "Rathanvel, V S"]
[WhiteFideId "12401013"]
[BlackFideId "25002112"]
[WhiteElo "2453"]
[BlackElo "2717"]
[Result "0-1"]
[Round "2"]
[TimeControl "180+2"]
[Date "2023.06.27"]
[WhiteClock "0:00:00"]
[BlackClock "0:01:09"]
[Board "74"]

1. d4 {[%clk 0:02:46]}  e6 {[%clk 0:02:54]} 2. Nf3 {[%clk 0:02:45]}  Nf6 {[%clk 0:02:54]} 3. e3 {[%clk 0:02:45]}  d5 {[%clk 0:02:53]} 4. Bd3 {[%clk 0:02:45]}  Bd6 {[%clk 0:02:53]} 5. O-O {[%clk 0:02:46]}  O-O {[%clk 0:02:54]} 6. b3 {[%clk 0:02:46]}  Ne4 {[%clk 0:02:52]} 7. Bb2 {[%clk 0:02:37]}  Nd7 {[%clk 0:02:50]} 8. Nbd2 {[%clk 0:02:31]}  f5 {[%clk 0:02:32]} 9. Ne5 {[%clk 0:02:29]}  Qf6 {[%clk 0:02:28]} 10. f4 {[%clk 0:02:29]}  Qh6 {[%clk 0:02:26]} 11. c4 {[%clk 0:02:13]}  c6 {[%clk 0:02:24]} 12. Nxe4 {[%clk 0:01:58]}  fxe4 {[%clk 0:02:22]} 13. Be2 {[%clk 0:01:56]}  g5 {[%clk 0:01:57]} 14. g3 {[%clk 0:01:12]}  gxf4 {[%clk 0:01:50]} 15. Rxf4 {[%clk 0:01:08]}  Nxe5 {[%clk 0:01:49]} 16. dxe5 {[%clk 0:01:08]}  Bc5 {[%clk 0:01:39]} 17. Bd4 {[%clk 0:01:08]}  Rxf4 {[%clk 0:01:37]} 18. exf4 {[%clk 0:01:08]}  Qf8 {[%clk 0:01:35]} 19. Kg2 {[%clk 0:01:06]}  Bd7 {[%clk 0:01:34]} 20. Qg1 {[%clk 0:00:57]}  Bxd4 {[%clk 0:01:33]} 21. Qxd4 {[%clk 0:00:58]}  c5 {[%clk 0:01:34]} 22. Qe3 {[%clk 0:00:57]}  d4 {[%clk 0:01:35]} 23. Qc1 {[%clk 0:00:44]}  Bc6 {[%clk 0:01:34]} 24. Kg1 {[%clk 0:00:37]}  Kh8 {[%clk 0:01:31]} 25. Bf1 {[%clk 0:00:34]}  e3 {[%clk 0:01:22]} 26. Qc2 {[%clk 0:00:32]}  Rd8 {[%clk 0:01:19]} 27. Qd3 {[%clk 0:00:31]}  Qf5 {[%clk 0:01:18]} 28. Qxf5 {[%clk 0:00:12]}  exf5 {[%clk 0:01:19]} 29. Bd3 {[%clk 0:00:07]}  Be4 {[%clk 0:01:19]} 30. Rd1 {[%clk 0:00:07]}  Kg7 {[%clk 0:01:18]} 31. Kf1 {[%clk 0:00:07]}  Bf3 {[%clk 0:01:17]} 32. Re1 {[%clk 0:00:06]}  Kf7 {[%clk 0:01:10]} 33. Rc1 {[%clk 0:00:06]}  Ke6 {[%clk 0:01:10]} 34. Ke1 {[%clk 0:00:05]}  h5 {[%clk 0:01:10]} 35. Rc2 {[%clk 0:00:05]}  h4 {[%clk 0:01:10]} 36. gxh4 {[%clk 0:00:01]}  Rg8 {[%clk 0:01:10]} 37. Kf1 {[%clk 0:00:00]}  Be4 {[%clk 0:01:09]} 0-1


[Site "https://www.chess.com"]

[Event "Titled Tuesday Blitz June 27 Late 2023"]
[White "Mujumdar, Sameer"]
[Black "Makridis, Dimitrios"]
[WhiteFideId "2029707"]
[BlackFideId "25864475"]
[WhiteElo "2419"]
[BlackElo "2713"]
[Result "0-1"]
[Round "2"]
[TimeControl "180+2"]
[Date "2023.06.27"]
[WhiteClock "0:00:03"]
[BlackClock "0:00:05"]
[Board "76"]

1. d4 {[%clk 0:03:00]}  Nf6 {[%clk 0:02:59]} 2. Nf3 {[%clk 0:02:58]}  e6 {[%clk 0:02:57]} 3. Bf4 {[%clk 0:02:57]}  Bd6 {[%clk 0:02:56]} 4. e3 {[%clk 0:02:56]}  Bxf4 {[%clk 0:02:44]} 5. exf4 {[%clk 0:02:55]}  O-O {[%clk 0:02:45]} 6. Bd3 {[%clk 0:02:55]}  c5 {[%clk 0:02:42]} 7. dxc5 {[%clk 0:02:50]}  Qc7 {[%clk 0:02:43]} 8. g3 {[%clk 0:02:50]}  Qxc5 {[%clk 0:02:43]} 9. O-O {[%clk 0:02:49]}  b6 {[%clk 0:02:43]} 10. Nbd2 {[%clk 0:02:48]}  Bb7 {[%clk 0:02:43]} 11. Qe2 {[%clk 0:02:48]}  Nc6 {[%clk 0:02:43]} 12. c3 {[%clk 0:02:48]}  d5 {[%clk 0:02:42]} 13. Rfe1 {[%clk 0:02:46]}  Rad8 {[%clk 0:02:42]} 14. Ne5 {[%clk 0:02:45]}  h6 {[%clk 0:02:41]} 15. Nb3 {[%clk 0:02:41]}  Qe7 {[%clk 0:02:33]} 16. Nxc6 {[%clk 0:02:32]}  Bxc6 {[%clk 0:02:32]} 17. f5 {[%clk 0:02:27]}  Ne4 {[%clk 0:02:28]} 18. Nd4 {[%clk 0:02:21]}  Bb7 {[%clk 0:02:24]} 19. f3 {[%clk 0:02:08]}  e5 {[%clk 0:02:13]} 20. Nb3 {[%clk 0:01:49]}  Nc5 {[%clk 0:02:02]} 21. Nxc5 {[%clk 0:01:44]}  Qxc5+ {[%clk 0:02:03]} 22. Qf2 {[%clk 0:01:29]}  Qd6 {[%clk 0:01:58]} 23. Rad1 {[%clk 0:01:24]}  Rfe8 {[%clk 0:01:54]} 24. Bc2 {[%clk 0:01:21]}  Qf6 {[%clk 0:01:45]} 25. Qe3 {[%clk 0:01:14]}  e4 {[%clk 0:01:24]} 26. fxe4 {[%clk 0:01:11]}  dxe4 {[%clk 0:01:25]} 27. Ba4 {[%clk 0:01:07]}  Re5 {[%clk 0:01:21]} 28. g4 {[%clk 0:01:02]}  Qe7 {[%clk 0:00:46]} 29. h3 {[%clk 0:00:54]}  h5 {[%clk 0:00:43]} 30. Rxd8+ {[%clk 0:00:48]}  Qxd8 {[%clk 0:00:42]} 31. Rd1 {[%clk 0:00:49]}  Qh4 {[%clk 0:00:34]} 32. Rd7 {[%clk 0:00:43]}  Bc8 {[%clk 0:00:08]} 33. Rc7 {[%clk 0:00:43]}  Ba6 {[%clk 0:00:04]} 34. Rxa7 {[%clk 0:00:42]}  Bd3 {[%clk 0:00:04]} 35. Ra8+ {[%clk 0:00:36]}  Kh7 {[%clk 0:00:04]} 36. Be8 {[%clk 0:00:34]}  hxg4 {[%clk 0:00:04]} 37. Bxf7 {[%clk 0:00:31]}  Rxf5 {[%clk 0:00:03]} 38. Bg8+ {[%clk 0:00:30]}  Kg6 {[%clk 0:00:03]} 39. Be6 {[%clk 0:00:13]}  Rf1+ {[%clk 0:00:04]} 40. Kg2 {[%clk 0:00:13]}  gxh3+ {[%clk 0:00:04]} 41. Bxh3 {[%clk 0:00:12]}  Re1 {[%clk 0:00:02]} 42. Qxb6+ {[%clk 0:00:08]}  Qf6 {[%clk 0:00:02]} 43. Qxf6+ {[%clk 0:00:08]}  Kxf6 {[%clk 0:00:03]} 44. Rb8 {[%clk 0:00:02]}  Re2+ {[%clk 0:00:02]} 45. Kg3 {[%clk 0:00:03]}  Rd2 {[%clk 0:00:03]} 46. Kf4 {[%clk 0:00:03]}  g5+ {[%clk 0:00:03]} 47. Ke3 {[%clk 0:00:03]}  Rh2 {[%clk 0:00:03]} 48. Bg4 {[%clk 0:00:02]}  Rg2 {[%clk 0:00:03]} 49. Bh5 {[%clk 0:00:02]}  Ke5 {[%clk 0:00:03]} 50. Rb5+ {[%clk 0:00:02]}  Bxb5 {[%clk 0:00:03]} 51. Bg6 {[%clk 0:00:02]}  Rg3+ {[%clk 0:00:03]} 52. Kd2 {[%clk 0:00:02]}  Rf3 {[%clk 0:00:04]} 53. Kc2 {[%clk 0:00:03]}  Bd3+ {[%clk 0:00:04]} 54. Kb3 {[%clk 0:00:03]}  e3 {[%clk 0:00:05]} 0-1


[Site "https://www.chess.com"]

[Event "Titled Tuesday Blitz June 27 Late 2023"]
[White "Perez Rodriguez, Jennifer"]
[Black "Goltsev, Dmitry"]
[WhiteFideId "3507831"]
[BlackFideId "24176710"]
[WhiteElo "2395"]
[BlackElo "2702"]
[Result "0-1"]
[Round "2"]
[TimeControl "180+2"]
[Date "2023.06.27"]
[WhiteClock "0:01:40"]
[BlackClock "0:02:40"]
[Board "78"]

1. e4 {[%clk 0:02:57]}  e6 {[%clk 0:02:55]} 2. d4 {[%clk 0:02:56]}  d5 {[%clk 0:02:56]} 3. Bd3 {[%clk 0:02:56]}  c5 {[%clk 0:02:56]} 4. exd5 {[%clk 0:02:56]}  exd5 {[%clk 0:02:56]} 5. Nf3 {[%clk 0:02:55]}  Nf6 {[%clk 0:02:57]} 6. O-O {[%clk 0:02:55]}  Nc6 {[%clk 0:02:57]} 7. Re1+ {[%clk 0:02:55]}  Be7 {[%clk 0:02:58]} 8. dxc5 {[%clk 0:02:55]}  O-O {[%clk 0:02:59]} 9. Be3 {[%clk 0:02:53]}  Bg4 {[%clk 0:02:58]} 10. c3 {[%clk 0:02:50]}  Ne4 {[%clk 0:02:55]} 11. Bxe4 {[%clk 0:02:42]}  dxe4 {[%clk 0:02:56]} 12. Qxd8 {[%clk 0:02:42]}  Raxd8 {[%clk 0:02:57]} 13. Nd4 {[%clk 0:02:43]}  Ne5 {[%clk 0:02:57]} 14. b4 {[%clk 0:02:34]}  Nd3 {[%clk 0:02:54]} 15. Rf1 {[%clk 0:02:30]}  Bf6 {[%clk 0:02:50]} 16. Nb5 {[%clk 0:02:25]}  Be2 {[%clk 0:02:47]} 17. Nd6 {[%clk 0:02:10]}  Bxf1 {[%clk 0:02:45]} 18. Kxf1 {[%clk 0:02:11]}  Nxb4 {[%clk 0:02:45]} 19. Nxe4 {[%clk 0:02:09]}  Nc2 {[%clk 0:02:44]} 20. Nxf6+ {[%clk 0:01:55]}  gxf6 {[%clk 0:02:45]} 21. Na3 {[%clk 0:01:54]}  Nxa1 {[%clk 0:02:45]} 22. Bd4 {[%clk 0:01:54]}  Rfe8 {[%clk 0:02:41]} 23. h3 {[%clk 0:01:46]}  Re6 {[%clk 0:02:42]} 24. g4 {[%clk 0:01:45]}  Ra6 {[%clk 0:02:41]} 25. Nc4 {[%clk 0:01:40]}  Rxa2 {[%clk 0:02:40]} 0-1


[Site "https://www.chess.com"]

[Event "Titled Tuesday Blitz June 27 Late 2023"]
[White "Bolourchifard, Farzad"]
[Black "Lopez Del Alamo, Antonio"]
[WhiteFideId "12510084"]
[BlackFideId "2227339"]
[WhiteElo "2700"]
[BlackElo "2376"]
[Result "1-0"]
[Round "2"]
[TimeControl "180+2"]
[Date "2023.06.27"]
[WhiteClock "0:01:05"]
[BlackClock "0:00:07"]
[Board "79"]

1. d4 {[%clk 0:02:55]}  Nf6 {[%clk 0:02:59]} 2. Nf3 {[%clk 0:02:54]}  g6 {[%clk 0:02:58]} 3. Bg5 {[%clk 0:02:54]}  Bg7 {[%clk 0:02:57]} 4. e3 {[%clk 0:02:54]}  O-O {[%clk 0:02:57]} 5. Be2 {[%clk 0:02:55]}  d6 {[%clk 0:02:57]} 6. O-O {[%clk 0:02:55]}  Nbd7 {[%clk 0:02:57]} 7. Nbd2 {[%clk 0:02:53]}  Qe8 {[%clk 0:02:57]} 8. c3 {[%clk 0:02:47]}  b6 {[%clk 0:02:56]} 9. a4 {[%clk 0:02:47]}  a5 {[%clk 0:02:55]} 10. Qb3 {[%clk 0:02:46]}  Bb7 {[%clk 0:02:52]} 11. Bb5 {[%clk 0:02:43]}  e6 {[%clk 0:02:47]} 12. Rfe1 {[%clk 0:02:41]}  Qe7 {[%clk 0:02:46]} 13. e4 {[%clk 0:02:40]}  h6 {[%clk 0:02:39]} 14. Bh4 {[%clk 0:02:40]}  g5 {[%clk 0:02:37]} 15. Bg3 {[%clk 0:02:34]}  Nh5 {[%clk 0:02:29]} 16. Qc4 {[%clk 0:02:21]}  Rfc8 {[%clk 0:02:04]} 17. Bc6 {[%clk 0:02:21]}  Ba6 {[%clk 0:01:50]} 18. Qa2 {[%clk 0:02:17]}  Ra7 {[%clk 0:01:43]} 19. Bb5 {[%clk 0:02:05]}  Bb7 {[%clk 0:01:35]} 20. Bxd7 {[%clk 0:01:45]}  Qxd7 {[%clk 0:01:33]} 21. d5 {[%clk 0:01:45]}  e5 {[%clk 0:01:05]} 22. b4 {[%clk 0:01:38]}  Rca8 {[%clk 0:01:00]} 23. b5 {[%clk 0:01:31]}  Bc8 {[%clk 0:00:54]} 24. Qc4 {[%clk 0:01:29]}  Qe8 {[%clk 0:00:45]} 25. Nf1 {[%clk 0:01:27]}  f5 {[%clk 0:00:42]} 26. exf5 {[%clk 0:01:26]}  Bxf5 {[%clk 0:00:42]} 27. N3d2 {[%clk 0:01:26]}  Qd7 {[%clk 0:00:33]} 28. Qe2 {[%clk 0:01:22]}  Bg6 {[%clk 0:00:30]} 29. f3 {[%clk 0:01:21]}  Rf8 {[%clk 0:00:30]} 30. Ne3 {[%clk 0:01:21]}  Rf7 {[%clk 0:00:28]} 31. Ndf1 {[%clk 0:01:20]}  Ra8 {[%clk 0:00:29]} 32. Qc4 {[%clk 0:01:19]}  Raf8 {[%clk 0:00:28]} 33. Ng4 {[%clk 0:01:18]}  Nf6 {[%clk 0:00:24]} 34. Nxf6+ {[%clk 0:01:16]}  Bxf6 {[%clk 0:00:23]} 35. Nd2 {[%clk 0:01:17]}  Bd8 {[%clk 0:00:22]} 36. h3 {[%clk 0:01:12]}  Rf6 {[%clk 0:00:16]} 37. Qg4 {[%clk 0:01:11]}  Qxg4 {[%clk 0:00:16]} 38. hxg4 {[%clk 0:01:12]}  Kg7 {[%clk 0:00:15]} 39. Ne4 {[%clk 0:01:11]}  Bxe4 {[%clk 0:00:15]} 40. Rxe4 {[%clk 0:01:12]}  R6f7 {[%clk 0:00:14]} 41. Rae1 {[%clk 0:01:11]}  Kg6 {[%clk 0:00:14]} 42. Rc4 {[%clk 0:01:11]}  Re8 {[%clk 0:00:14]} 43. Rc6 {[%clk 0:01:12]}  Ref8 {[%clk 0:00:14]} 44. Rxe5 {[%clk 0:01:10]}  Kg7 {[%clk 0:00:13]} 45. Re4 {[%clk 0:01:06]}  Re8 {[%clk 0:00:07]} 46. Rxe8 {[%clk 0:01:05]} 1-0


[Site "https://www.chess.com"]

[Event "Titled Tuesday Blitz June 27 Late 2023"]
[White "Peatman, Carter"]
[Black "Fisher_TheGalactic"]
[WhiteFideId "2096480"]
[WhiteElo "2372"]
[BlackElo "2694"]
[Result "0-1"]
[Round "2"]
[TimeControl "180+2"]
[Date "2023.06.27"]
[WhiteClock "0:02:20"]
[BlackClock "0:02:12"]
[Board "80"]

1. d4 {[%clk 0:03:00]}  Nf6 {[%clk 0:02:57]} 2. Bf4 {[%clk 0:03:01]}  g6 {[%clk 0:02:56]} 3. e3 {[%clk 0:03:01]}  Bg7 {[%clk 0:02:57]} 4. Nf3 {[%clk 0:03:02]}  O-O {[%clk 0:02:57]} 5. h3 {[%clk 0:02:57]}  d6 {[%clk 0:02:57]} 6. Bh2 {[%clk 0:02:57]}  c5 {[%clk 0:02:56]} 7. Bd3 {[%clk 0:02:53]}  Nc6 {[%clk 0:02:52]} 8. c3 {[%clk 0:02:53]}  b6 {[%clk 0:02:43]} 9. e4 {[%clk 0:02:51]}  Bb7 {[%clk 0:02:43]} 10. Nbd2 {[%clk 0:02:50]}  cxd4 {[%clk 0:02:40]} 11. cxd4 {[%clk 0:02:50]}  Nb4 {[%clk 0:02:40]} 12. Bb1 {[%clk 0:02:49]}  Ba6 {[%clk 0:02:38]} 13. Qb3 {[%clk 0:02:43]}  Nc6 {[%clk 0:02:34]} 14. Qa4 {[%clk 0:02:37]}  Qc8 {[%clk 0:02:25]} 15. Bc2 {[%clk 0:02:25]}  Nb4 {[%clk 0:02:17]} 16. Rc1 {[%clk 0:02:26]}  Nd3+ {[%clk 0:02:13]} 17. Kd1 {[%clk 0:02:24]}  Nxb2+ {[%clk 0:02:12]} 18. Ke1 {[%clk 0:02:20]}  Nxa4 {[%clk 0:02:12]} 0-1


[Site "https://www.chess.com"]